bitfinex/quotes_ETHUSD_20251010
["timestamp","ask_amount","ask_price","bid_price","bid_amount"]
[1760068481754,2.29452526,4358.2,4358.1,1e-08]
[1760068482032,8.85952526,4358.2,4358.1,1e-08]
[1760068482227,6.565,4358.2,4358.1,1e-08]
[1760068483774,6.565,4358.2,4358.1,0.44010001]
[1760068484131,6.565,4358.2,4358.1,0.58380001]
[1760068484754,8.868,4358.2,4358.1,0.58380001]
[1760068485132,2.29449182,4358.3,4358.1,0.58380001]
[1760068485354,6.16452526,4358.2,4358.1,0.14370001]
[1760068485773,6.16452526,4358.2,4358.1,1e-08]
[1760068485981,8.77652526,4358.2,4358.1,1e-08]
[1760068486565,8.89092526,4358.2,4358.1,1e-08]
[1760068486760,9.32962526,4358.2,4358.1,1e-08]
[1760068491582,18.87762526,4358.2,4358.1,1e-08]
[1760068492004,18.87762526,4358.2,4358.1,0.00100001]
[1760068492370,2.84762526,4358.2,4358.1,0.00100001]
[1760068492576,21.02662526,4358.2,4358.1,0.00100001]
[1760068493416,2.84762526,4358.2,4358.1,0.00100001]
[1760068493599,21.26562526,4358.2,4358.1,0.00100001]
[1760068495157,21.34002526,4358.2,4358.1,0.00100001]
[1760068498402,2.92202526,4358.2,4358.1,0.00100001]
[1760068498696,21.34102526,4358.2,4358.1,0.00100001]
[1760068499248,2.48332526,4358.2,4358.1,0.00100001]
[1760068499540,11.80912526,4358.2,4358.1,0.00100001]
[1760068500413,12.30108021,4358.2,4358.1,0.00100001]
[1760068503115,12.91434082,4358.2,4358.1,0.00100001]
[1760068503311,12.30108021,4358.2,4358.1,0.00100001]
[1760068503541,3.43208021,4358.2,4358.1,0.00100001]
[1760068503713,2.86088021,4358.2,4358.1,0.00100001]
[1760068504033,11.69372526,4358.2,4358.1,0.00100001]
[1760068504339,12.18568021,4358.2,4358.1,0.00100001]
[1760068504535,11.72888021,4358.2,4358.1,0.00100001]
[1760068504710,12.18568021,4358.2,4358.1,0.00100001]
[1760068505399,11.72888021,4358.2,4358.1,0.00100001]
[1760068505599,0.0744,4358.2,4358.1,0.00100001]
[1760068505824,1.8438,4358.2,4358.1,0.00100001]
[1760068506034,0.0744,4358.2,4358.1,0.46810001]
[1760068506237,8.8724,4358.2,4358.1,1.24540001]
[1760068507105,8.9424,4358.2,4358.1,1.24540001]
[1760068507721,0.0744,4358.2,4358.1,1.24540001]
[1760068507907,4.0124,4358.2,4358.1,1.24540001]
[1760068508111,6.3994,4358.2,4358.1,1.24540001]
[1760068508326,4.75592526,4358.2,4358.1,0.00100001]
[1760068508643,12.80115774,4358.2,4358.1,0.00100001]
[1760068509342,12.80115774,4358.2,4357.1,0.01]
[1760068509343,9.89337187,4358.2,4357.1,0.01]
[1760068509503,0.61784801,4357.8,4357.1,0.01]
[1760068509705,2.29496776,4357.4,4357.1,0.01]
[1760068509925,2.29505186,4357.2,4357.1,0.01]
[1760068510125,2.78922373,4357.2,4357.1,1e-08]
[1760068510332,3.24602373,4357.2,4357.1,1e-08]
[1760068511251,3.70368479,4357.2,4357.1,1e-08]
[1760068511408,3.70368479,4357.2,4356.1,0.01]
[1760068511409,20.4080005,4357.2,4356.1,1e-08]
[1760068511609,2.29622602,4355.0,4354.2,0.4671]
[1760068511844,3.11867134,4356.7,4354.3,0.1090658]
[1760068511845,6.483,4354.9,4354.3,0.1090658]
[1760068512107,6.483,4354.9,4354.4,0.4671]
[1760068512108,3.758,4354.9,4354.4,0.4671]
[1760068512408,3.758,4354.9,4354.5,0.49006474]
[1760068512713,6.484,4355.7,4354.7,0.6336]
[1760068512919,6.484,4355.7,4354.9,0.6336]
[1760068513119,6.484,4355.7,4355.0,0.4671]
[1760068513641,6.484,4355.7,4355.1,0.65656158]
[1760068513814,6.484,4355.7,4355.3,0.6336]
[1760068514014,6.484,4356.0,4355.5,0.6336]
[1760068514216,6.484,4356.0,4355.7,0.6336]
[1760068514423,8.87,4356.3,4355.8,0.4671]
[1760068514616,8.87,4356.3,4356.0,0.6336]
[1760068515018,2.29573687,4355.9,4355.6,0.6336]
[1760068515334,8.87,4356.3,4355.6,0.6336]
[1760068515507,8.87,4356.3,4355.8,0.6336]
[1760068515707,8.87,4356.3,4355.7,0.4671]
[1760068515708,8.87,4356.3,4356.2,0.7622]
[1760068515907,6.483,4356.3,4356.2,1.2293]
[1760068517035,8.77852601,4356.3,4356.2,0.6336]
[1760068517221,8.77852601,4356.3,4355.3,0.4671]
[1760068517406,8.77852601,4356.3,4354.7,0.4671]
[1760068517407,2.29563141,4356.1,4354.7,0.4671]
[1760068517811,2.29609762,4355.3,4354.8,0.6336]
[1760068518156,6.483,4355.4,4354.5,0.4671]
[1760068518444,0.1144,4355.1,4354.6,0.02296422]
[1760068518609,5.762,4355.1,4354.7,1.1007]
[1760068518804,5.762,4355.1,4354.9,0.6336]
[1760068519052,5.762,4355.1,4354.9,0.4671]
[1760068519228,5.762,4355.1,4354.8,0.02296316]
[1760068519431,5.762,4355.1,4354.3,0.0861]
[1760068519632,5.762,4355.1,4353.9,0.1144]
[1760068519633,2.29647491,4354.5,4353.9,0.1144]
[1760068519811,6.483,4354.4,4353.9,0.1144]
[1760068520010,2.29658218,4354.3,4353.9,0.1144]
[1760068520207,6.483,4354.4,4353.9,0.1144]
[1760068520440,6.483,4354.4,4354.0,0.6336]
[1760068520641,6.483,4354.4,4354.2,1.1007]
[1760068520938,0.4568,4356.3,4354.4,0.6336]
[1760068521142,0.4568,4356.3,4354.8,0.6336]
[1760068521143,7.845,4355.4,4354.8,0.6336]
[1760068521309,5.457,4355.4,4355.2,0.6336]
[1760068521509,5.457,4355.4,4355.3,1.1007]
[1760068522020,6.483,4355.8,4355.4,0.6336]
[1760068522233,6.483,4355.8,4355.6,0.6336]
[1760068522437,2.388,4356.8,4356.0,0.6336]
[1760068522643,6.483,4356.7,4356.2,0.6336]
[1760068522810,2.29536799,4356.6,4356.2,0.6336]
[1760068523016,6.483,4356.7,4356.2,0.6336]
[1760068523542,8.77833094,4356.7,4356.4,0.6336]
[1760068523743,6.483,4356.7,4356.4,0.6336]
[1760068524146,2.29536794,4356.6,4356.2,0.6336]
[1760068524851,0.4568,4356.5,4355.3,0.4671]
[1760068525046,2.29586118,4355.7,4354.8,0.4671]
[1760068525359,6.483,4355.7,4354.8,0.4671]
[1760068525646,2.29601377,4355.4,4354.3,0.6336]
[1760068525846,2.29601205,4355.4,4354.4,2.29651239]
[1760068526149,2.29601205,4355.4,4354.5,2.3871]
[1760068526447,2.29601205,4355.4,4354.3,1.92]
[1760068526448,6.483,4355.7,4355.0,2.29618333]
[1760068526652,2.29621125,4355.0,4354.1,0.01]
[1760068526818,0.2139,4355.1,4354.1,0.01]
[1760068526819,8.873,4354.9,4354.1,0.01]
[1760068527149,9.3436,4354.9,4354.1,0.01]
[1760068527557,9.3436,4354.9,4353.1,0.01]
[1760068527850,0.61749899,4354.7,4353.1,0.01]
[1760068528053,2.2971607,4353.2,4353.1,0.01]
[1760068528241,6.8951607,4353.2,4353.1,0.01]
[1760068528418,7.3657607,4353.2,4353.1,0.01]
[1760068528952,7.3657607,4353.2,4352.1,0.01]
[1760068528953,2.29766853,4352.3,4352.1,0.01]
[1760068529153,8.873,4352.2,4352.1,0.01]
[1760068529338,8.873,4352.2,4351.1,0.01]
[1760068529339,9.3436,4352.2,4351.1,0.01]
[1760068529543,9.3436,4352.2,4350.1,0.01]
[1760068529544,0.2168,4351.2,4350.1,0.01]
[1760068529866,0.2168,4351.2,4349.1,0.01]
[1760068529867,2.29927342,4349.2,4349.1,0.01]
[1760068530159,2.29952455,4348.8,4348.1,0.01]
[1760068530343,4.63254978,4348.7,4348.1,0.01]
[1760068530517,6.485,4348.6,4348.1,0.01]
[1760068531752,0.4706,4348.5,4348.1,0.01]
[1760068531944,2.389,4348.4,4348.1,0.01]
[1760068532271,2.2997648,4348.3,4348.1,0.01]
[1760068532417,2.8596,4348.4,4348.1,0.01]
[1760068532620,0.4706,4348.2,4348.1,0.01]
[1760068533265,21.26931571,4348.6,4348.1,0.01]
[1760068533266,0.34974967,4349.7,4348.1,0.01]
[1760068533435,14.78431571,4349.0,4348.1,0.01]
[1760068533642,12.136,4349.2,4348.1,0.01]
[1760068533967,12.136,4349.2,4348.1,2.30981216]
[1760068534288,12.136,4349.2,4348.2,0.02299802]
[1760068534430,12.136,4349.2,4348.1,0.6436]
[1760068534431,2.577,4349.2,4348.1,0.6436]
[1760068534767,2.577,4349.2,4348.2,0.02299802]
[1760068534971,2.577,4349.2,4349.0,2.29936463]
[1760068535132,0.188,4349.2,4349.0,2.29936463]
[1760068535334,0.1144,4349.2,4349.0,2.29936463]
[1760068535572,0.1144,4349.2,4349.0,2.76536463]
[1760068535977,0.1144,4349.2,4349.0,2.29936463]
[1760068536273,0.1144,4349.2,4348.5,0.1144]
[1760068536485,0.1144,4349.2,4348.3,0.466]
[1760068536486,0.4706,4349.4,4348.1,0.01]
[1760068536843,2.29922056,4349.3,4348.1,0.01]
[1760068537070,2.29958479,4348.7,4348.1,0.01]
[1760068537269,4.858,4348.6,4348.1,0.01]
[1760068537470,4.424,4348.5,4348.1,0.01]
[1760068537770,4.416,4348.4,4348.1,0.01]
[1760068539899,4.416,4348.4,4348.2,2.29978451]
[1760068540100,6.495,4348.9,4348.1,0.01]
[1760068540381,2.391,4349.2,4349.0,2.29934089]
[1760068541010,5.961,4349.4,4349.0,2.29934089]
[1760068541318,5.961,4349.4,4349.1,2.29932366]
[1760068541464,5.961,4349.4,4349.2,2.29926734]
[1760068541664,2.391,4350.0,4349.2,2.29926734]
[1760068541891,6.496,4349.9,4348.5,0.6336]
[1760068542170,6.496,4349.9,4349.6,2.29905592]
[1760068542502,0.4706,4350.7,4349.8,2.29895037]
[1760068542706,6.496,4350.6,4349.9,2.29889506]
[1760068542891,6.496,4350.6,4349.5,2.93271484]
[1760068543209,6.496,4350.6,4348.2,0.6336]
[1760068543210,0.4706,4350.5,4348.2,0.6336]
[1760068543406,0.2168,4349.6,4348.5,2.29963417]
[1760068543577,3.854,4349.5,4348.6,2.29958312]
[1760068543768,3.854,4349.5,4348.7,2.29952845]
[1760068543968,3.854,4349.5,4348.4,0.02299696]
[1760068544510,2.391,4349.6,4349.5,2.29911484]
[1760068544713,5.113,4350.0,4349.5,2.2991132]
[1760068545075,5.113,4350.0,4349.9,2.29890342]
[1760068545273,6.496,4350.6,4350.4,2.29863167]
[1760068545466,6.496,4350.6,4349.7,0.6336]
[1760068545688,6.496,4350.6,4350.5,2.29858636]
[1760068546194,0.01,4350.9,4350.5,2.29858636]
[1760068546195,0.01,4350.9,4350.8,2.29842787]
[1760068546394,0.1144,4350.7,4350.0,2.41323517]
[1760068546594,0.1144,4350.7,4350.5,2.29858145]
[1760068546892,0.1144,4350.7,4350.1,0.6336]
[1760068546893,0.01,4350.9,4350.1,0.6336]
[1760068547095,0.1244,4350.9,4350.7,2.29842817]
[1760068547268,0.1244,4350.9,4350.3,0.6336]
[1760068547269,0.01,4350.9,4350.5,0.1144]
[1760068547475,0.01,4350.9,4350.8,2.29842787]
[1760068547669,2.8648,4350.9,4349.0,0.4456]
[1760068547899,2.8478,4350.8,4348.0,2.29986882]
[1760068548071,2.29890774,4349.9,4348.4,2.29965846]
[1760068548271,2.29890774,4349.9,4348.8,2.29947745]
[1760068548272,8.888,4349.8,4348.8,2.29947745]
[1760068548472,8.888,4349.8,4349.1,2.29931859]
[1760068548673,8.888,4349.8,4348.4,0.4456]
[1760068548887,8.888,4349.8,4349.5,2.29911409]
[1760068549094,8.888,4349.8,4348.5,1.92]
[1760068549413,8.888,4349.8,4348.5,4.21963568]
[1760068549583,8.888,4349.8,4348.8,2.29948342]
[1760068549584,11.18695915,4349.8,4348.8,2.29948342]
[1760068549783,8.888,4349.8,4348.9,2.2994293]
[1760068549985,8.888,4349.8,4348.3,0.6336]
[1760068549986,8.888,4349.8,4349.0,2.29937531]
[1760068550183,8.888,4349.8,4348.2,0.1286]
[1760068550387,2.2991259,4349.5,4348.1,0.01]
[1760068550614,0.4638,4349.7,4348.5,2.29964031]
[1760068550815,0.4638,4349.6,4348.1,0.01]
[1760068551015,15.24702331,4349.2,4348.1,0.01]
[1760068551172,2.29980221,4348.2,4348.1,0.011]
[1760068551371,8.91780221,4348.2,4348.1,0.011]
[1760068551572,7.0818,4348.2,4345.7,0.4456]
[1760068551809,2.52933124,4347.2,4345.9,2.30097768]
[1760068551999,2.52933124,4347.2,4345.8,2.30102026]
[1760068552000,11.41733124,4347.2,4345.8,2.30102026]
[1760068552202,9.5808,4347.2,4345.7,4.22109803]
[1760068552400,9.5808,4347.2,4346.4,2.30072415]
[1760068552599,9.5808,4347.2,4345.9,2.30098006]
[1760068552800,9.5808,4347.2,4346.0,2.30093836]
[1760068553002,9.3518,4347.2,4345.3,1.92]
[1760068553202,9.3518,4347.2,4345.3,4.339]
[1760068553404,8.888,4347.2,4346.5,2.30069827]
[1760068553714,8.888,4347.2,4346.4,2.30073817]
[1760068553914,8.888,4347.2,4346.2,0.008106]
[1760068553915,8.888,4347.2,4346.2,1.087306]
[1760068554126,2.392,4347.9,4346.4,0.6336]
[1760068554415,2.462,4347.8,4346.6,0.6336]
[1760068554616,2.462,4347.8,4346.3,0.6336]
[1760068554823,2.462,4347.8,4346.7,0.6336]
[1760068554976,2.462,4347.8,4347.2,2.30033093]
[1760068555180,2.462,4347.8,4346.7,0.6336]
[1760068555406,2.392,4348.6,4348.0,2.29990423]
[1760068555590,2.392,4348.6,4348.1,2.29984309]
[1760068555800,2.392,4348.6,4348.2,2.2997934]
[1760068555980,2.392,4348.6,4348.1,2.2998542]
[1760068556176,4.463,4348.7,4348.3,2.2997295]
[1760068556377,4.463,4348.7,4348.1,0.1286]
[1760068556582,5.152,4349.2,4348.4,0.6336]
[1760068556816,0.01,4349.9,4349.1,2.29931271]
[1760068556999,6.498,4349.8,4348.5,0.02299643]
[1760068557223,6.498,4349.8,4348.5,0.6336]
[1760068557581,6.498,4349.8,4349.2,2.29924903]
[1760068557921,0.1144,4349.4,4349.2,2.29927341]
[1760068558514,0.1144,4349.4,4349.0,0.02299379]
[1760068558714,6.498,4349.8,4349.7,2.29900912]
[1760068559017,0.01,4349.9,4349.6,2.29906198]
[1760068559220,0.01,4349.9,4349.8,2.29895627]
[1760068559519,0.01,4349.9,4349.8,2.93255627]
[1760068559823,0.01,4349.9,4349.8,3.52864583]
[1760068560021,0.01,4349.9,4349.8,5.33424583]
[1760068560223,0.01,4349.9,4349.8,5.31125627]
[1760068561215,0.01,4349.9,4349.8,4.85255627]
[1760068561626,0.01,4349.9,4349.8,5.31125627]
[1760068561786,0.002,4350.4,4349.9,1.92]
[1760068562122,0.002,4350.4,4350.3,3.01159204]
[1760068562331,0.002,4350.4,4350.3,2.85789204]
[1760068562839,0.002,4350.4,4349.5,2.29907165]
[1760068563014,0.002,4350.4,4350.1,2.29878977]
[1760068563215,0.002,4350.4,4349.7,2.29900912]
[1760068563216,0.002,4350.4,4349.8,0.65658956]
[1760068563424,0.002,4350.4,4350.3,2.29869204]
[1760068563616,0.49210692,4351.3,4350.2,0.02298744]
[1760068563617,0.47159782,4351.3,4350.2,0.02298744]
[1760068563818,0.47159782,4351.3,4350.5,2.29855121]
[1760068564020,0.47159782,4351.3,4350.6,2.29849619]
[1760068564211,0.47159782,4351.3,4349.9,2.93248511]
[1760068564405,0.47159782,4351.3,4350.9,2.29835608]
[1760068564631,5.906,4351.4,4350.9,2.29835608]
[1760068564810,5.906,4351.4,4350.4,0.65658639]
[1760068564993,5.906,4351.4,4350.9,2.29832593]
[1760068565194,5.906,4351.4,4351.0,2.29828072]
[1760068565406,5.906,4351.4,4350.9,0.02298375]
[1760068565607,5.906,4351.4,4350.4,1.92]
[1760068565608,0.4472,4351.3,4349.8,0.6336]
[1760068565812,0.4472,4351.3,4350.4,2.2986149]
[1760068566008,0.4472,4351.3,4350.5,2.29853701]
[1760068566495,5.906,4351.4,4349.9,0.6336]
[1760068566701,5.906,4351.4,4350.7,2.298429]
[1760068566901,5.906,4351.4,4350.5,2.29853407]
[1760068567110,5.906,4351.4,4350.6,2.29852646]
[1760068567328,5.906,4351.4,4350.3,0.6336]
[1760068567647,5.87461406,4351.4,4350.1,0.6336]
[1760068567845,8.1727271,4351.4,4350.4,2.29863593]
[1760068568147,5.87461406,4351.4,4350.5,2.29858165]
[1760068568517,5.87461406,4351.4,4350.7,2.29846728]
[1760068569032,5.87461406,4351.4,4350.3,0.6336]
[1760068569242,8.17273989,4351.4,4350.3,0.6336]
[1760068569400,5.87461406,4351.4,4350.3,0.6336]
[1760068569605,5.87461406,4351.4,4350.1,0.6336]
[1760068569903,5.87461406,4351.4,4350.4,2.2986392]
[1760068570143,0.1144,4350.9,4350.4,2.2986392]
[1760068571218,0.1144,4350.9,4350.3,0.6336]
[1760068571417,5.87461406,4351.4,4350.5,0.6336]
[1760068571617,5.87461406,4351.4,4351.1,0.6336]
[1760068571618,0.1144,4351.3,4351.1,0.6336]
[1760068571861,5.87461406,4351.4,4351.1,0.6336]
[1760068572054,2.392,4351.5,4351.1,0.6336]
[1760068572238,2.392,4351.5,4350.9,2.93196746]
[1760068572442,2.392,4351.5,4351.2,2.29817064]
[1760068572633,2.392,4351.5,4351.3,2.2981512]
[1760068572838,0.1144,4351.7,4351.1,2.298219]
[1760068573135,0.1144,4351.7,4351.2,2.29820936]
[1760068573956,0.1144,4351.7,4351.0,0.6336]
[1760068574155,0.1144,4351.7,4351.0,2.93190922]
[1760068574386,0.1144,4351.7,4350.9,0.6336]
[1760068574726,0.1144,4351.7,4351.1,2.29826887]
[1760068575050,0.1144,4351.7,4351.1,0.6336]
[1760068575253,0.1144,4351.7,4351.2,2.29821144]
[1760068575567,0.1144,4351.7,4351.4,2.29809702]
[1760068575769,0.1144,4351.7,4351.3,2.29815636]
[1760068575970,0.1144,4351.7,4351.3,2.29815879]
[1760068576173,0.1144,4351.7,4350.9,0.6336]
[1760068576174,0.1144,4351.7,4351.5,0.6336]
[1760068576331,6.507,4351.9,4351.8,2.29789971]
[1760068576332,0.01,4351.9,4351.8,2.29789971]
[1760068576538,0.01,4351.9,4351.8,3.4131787]
[1760068577530,0.01,4351.9,4351.8,5.3331787]
[1760068577753,0.01,4351.9,4351.8,5.31019971]
[1760068577948,1e-08,4351.9,4351.8,5.31019971]
[1760068579271,1e-08,4351.9,4351.8,14.19719971]
[1760068579473,1e-08,4351.9,4351.8,5.31019971]
[1760068579676,1e-08,4351.9,4351.8,14.19719971]
[1760068580204,0.01,4352.9,4351.8,14.19719971]
[1760068580205,0.01,4352.9,4352.8,0.6336]
[1760068580369,0.01,4352.9,4352.8,9.5413718]
[1760068580553,0.01,4352.9,4352.8,10.0000718]
[1760068580955,0.01,4352.9,4352.8,11.9200718]
[1760068581165,0.01,4352.9,4352.8,0.6336]
[1760068581356,0.01,4352.9,4351.8,0.1349]
[1760068581917,0.01,4352.9,4352.0,0.6336]
[1760068582074,2.30733709,4352.9,4351.9,2.29782581]
[1760068582275,2.29737193,4352.8,4351.9,0.6336]
[1760068582475,0.01,4352.9,4351.9,0.6336]
[1760068582790,0.01,4352.9,4352.1,2.93132609]
[1760068583316,0.01,4352.9,4351.4,2.39]
[1760068583317,15.24702331,4352.2,4348.3,2.05019777]
[1760068583517,15.24702331,4352.2,4348.1,0.01]
[1760068583518,0.2197,4350.2,4348.1,0.01]
[1760068583661,2.29927342,4349.2,4348.1,0.01]
[1760068583861,2.29954459,4348.7,4348.1,0.01]
[1760068584181,2.29980221,4348.2,4348.1,0.01]
[1760068584355,11.18580221,4348.2,4348.1,0.01]
[1760068584564,11.62420221,4348.2,4348.1,0.01]
[1760068585801,9.3244,4348.2,4348.1,0.01]
[1760068586210,8.886,4348.2,4348.1,0.01]
[1760068588872,9.34,4348.2,4348.1,0.01]
[1760068589472,8.886,4348.2,4348.1,0.01]
[1760068590904,6.496,4348.2,4348.1,0.01]
[1760068591285,6.498,4348.6,4348.5,2.29963301]
[1760068591493,6.6124,4348.6,4348.5,2.29963301]
[1760068592022,0.1144,4349.4,4348.8,0.6336]
[1760068592202,8.89,4349.6,4349.5,2.29911484]
[1760068593218,0.1144,4350.0,4349.7,2.29899694]
[1760068593582,0.1144,4350.0,4349.9,2.29890342]
[1760068593985,0.1144,4350.0,4349.5,0.45]
[1760068594500,0.1144,4350.0,4349.9,2.29890342]
[1760068595079,0.1144,4350.0,4349.5,0.45]
[1760068595327,0.1144,4350.0,4349.9,2.29890342]
[1760068595522,2.392,4350.5,4350.4,2.2986392]
[1760068595817,9.0044,4350.5,4350.4,2.2986392]
[1760068596614,9.0044,4350.5,4350.1,2.43366763]
[1760068596956,0.1144,4350.5,4350.1,0.1349]
[1760068597120,6.497,4350.5,4349.4,2.93271648]
[1760068597284,6.497,4350.5,4348.2,2.29977855]
[1760068597285,2.7526418,4350.4,4349.3,2.29921479]
[1760068597615,0.1144,4349.7,4349.4,2.29915178]
[1760068598219,0.1144,4349.7,4349.1,2.29932629]
[1760068598220,0.1144,4349.7,4349.0,0.1144]
[1760068598818,0.1144,4349.7,4349.5,2.29911063]
[1760068599917,0.1144,4350.1,4350.0,2.29885057]
[1760068600120,2.392,4350.5,4349.6,0.47299061]
[1760068600421,0.1144,4350.4,4350.3,2.29864307]
[1760068600726,2.1874,4350.9,4350.6,2.29852356]
[1760068601318,2.1874,4350.9,4350.7,2.29848019]
[1760068601629,2.1874,4350.9,4350.1,0.2493]
[1760068601835,2.1874,4350.9,4350.6,2.29852152]
[1760068603428,2.1874,4350.9,4350.2,0.6336]
[1760068603796,2.1874,4350.9,4350.6,2.29848619]
[1760068603994,2.1874,4350.9,4350.4,2.2986392]
[1760068604200,2.1874,4350.9,4350.7,2.29843316]
[1760068604444,2.1874,4350.9,4350.4,0.45]
[1760068604628,2.1874,4350.9,4350.5,2.29858636]
[1760068604807,0.01,4350.9,4350.6,3.4050963]
[1760068605010,0.01,4350.9,4350.8,2.93202787]
[1760068605233,0.01,4350.9,4350.8,2.95501214]
[1760068605409,0.01,4350.9,4350.8,3.38202787]
[1760068605610,0.01,4350.9,4350.8,3.40501214]
[1760068605820,0.01,4350.9,4350.8,3.51941214]
[1760068606602,1e-08,4350.9,4350.8,20.68643545]
[1760068606798,1e-08,4350.9,4350.8,20.66345118]
[1760068608203,0.01,4351.9,4351.8,2.93149971]
[1760068608512,0.01,4351.9,4351.8,2.9544787]
[1760068608832,0.01,4351.9,4351.8,3.49859971]
[1760068609031,0.01,4351.9,4351.8,9.99359971]
[1760068609240,0.01,4351.9,4351.8,3.49859971]
[1760068609446,0.01,4351.9,4351.8,9.99359971]
[1760068610713,0.017,4353.1,4351.8,9.99359971]
[1760068610714,0.017,4353.1,4352.8,2.2973718]
[1760068610914,0.1144,4353.2,4352.8,2.9309718]
[1760068611110,0.1144,4353.5,4352.8,3.3836718]
[1760068611531,2.5903,4353.6,4352.1,0.6336]
[1760068611732,0.1144,4353.0,4352.4,0.6336]
[1760068612040,0.1144,4353.0,4352.8,2.2973718]
[1760068612335,0.01,4353.9,4352.8,3.3836718]
[1760068613743,0.01,4353.9,4352.8,3.40664551]
[1760068614042,0.01,4353.9,4352.8,3.3836718]
[1760068614843,0.01,4353.9,4352.8,3.40664551]
[1760068615208,0.01,4353.9,4351.0,0.4527]
[1760068615209,0.4653,4353.9,4351.0,0.4527]
[1760068615408,0.4653,4353.9,4350.1,0.1449]
[1760068615409,0.023,4353.2,4351.2,14.33905513]
[1760068615618,0.023,4353.2,4351.4,2.29811095]
[1760068615844,2.39,4353.3,4352.8,2.2973718]
[1760068617060,2.39,4353.3,4352.7,2.29742214]
[1760068617249,2.39,4353.3,4352.5,2.2975252]
[1760068617448,2.39,4353.3,4351.8,0.001]
[1760068617449,2.39,4353.3,4352.6,2.32043049]
[1760068617649,0.092,4353.8,4352.8,2.2973718]
[1760068618065,0.092,4353.8,4352.8,2.78874551]
[1760068618629,0.01,4353.9,4352.8,3.42234551]
[1760068618832,0.01,4353.9,4352.8,3.3993718]
[1760068619168,0.01,4353.9,4352.3,2.2976059]
[1760068619169,0.2299,4353.8,4352.5,0.6336]
[1760068619496,2.29689878,4353.7,4352.5,0.6336]
[1760068619763,2.76016356,4353.2,4352.1,0.6336]
[1760068619966,0.475,4352.9,4352.3,2.29761296]
[1760068620265,0.012,4352.9,4352.4,2.29758255]
[1760068620568,0.012,4352.9,4352.2,2.29763923]
[1760068620757,0.012,4352.9,4351.9,8.79081324]
[1760068620758,0.012,4352.9,4352.3,2.29763284]
[1760068620955,0.012,4352.9,4352.4,2.29758158]
[1760068621468,0.012,4352.9,4351.9,6.493]
[1760068621469,0.012,4352.9,4352.6,2.29747736]
[1760068621637,0.012,4352.9,4352.8,2.2973718]
[1760068622034,0.012,4352.9,4352.8,3.3993718]
[1760068622239,0.012,4352.9,4352.8,3.5137718]
[1760068622940,0.012,4352.9,4352.8,3.53674551]
[1760068623269,2.39,4354.1,4352.9,0.6336]
[1760068623471,2.39,4354.1,4353.0,0.02297266]
[1760068623673,2.39,4354.1,4353.8,2.29683199]
[1760068623980,2.39,4354.1,4352.8,0.6336]
[1760068623981,0.463,4354.0,4349.1,2.88924148]
[1760068624138,0.2299,4351.9,4350.2,0.4684]
[1760068624339,2.52774691,4351.9,4350.1,2.44368931]
[1760068624539,2.99074691,4351.9,4350.1,0.1449]
[1760068624994,0.6929,4351.9,4350.1,0.01]
[1760068625199,2.29862541,4350.5,4350.1,0.01]
[1760068625472,0.573,4350.4,4350.1,0.01]
[1760068625683,1.026,4350.4,4350.1,0.01]
[1760068625990,0.463,4350.3,4350.1,0.01]
[1760068626143,2.76169242,4350.3,4350.1,0.01]
[1760068626579,0.553,4350.4,4350.1,0.01]
[1760068627573,0.52198839,4350.4,4350.1,0.01]
[1760068627885,2.39,4351.2,4350.1,0.01]
[1760068628065,2.39,4351.2,4350.7,2.29845127]
[1760068628574,2.39,4351.2,4350.8,2.29842069]
[1760068629373,2.39,4351.2,4350.2,0.4684]
[1760068629740,2.39,4351.2,4351.0,2.29830675]
[1760068629944,4.736,4351.5,4351.3,2.29815879]
[1760068630396,4.736,4351.5,4351.2,2.29816407]
[1760068630574,4.736,4351.5,4351.0,0.4684]
[1760068630881,2.39,4351.9,4350.5,3.0536]
[1760068631091,2.39,4351.9,4351.0,2.29830182]
[1760068631247,0.2299,4351.1,4350.1,0.01]
[1760068631448,2.29850331,4350.7,4350.1,0.01]
[1760068631664,2.29865776,4350.4,4350.1,0.01]
[1760068631954,2.29874488,4350.2,4350.1,0.01]
[1760068632180,4.68874488,4350.2,4350.1,0.01]
[1760068632360,5.15174488,4350.2,4350.1,0.01]
[1760068633661,2.853,4350.2,4350.1,0.01]
[1760068633854,5.15174488,4350.2,4350.1,0.01]
[1760068635361,2.853,4350.2,4350.1,0.01]
[1760068635563,2.39,4350.2,4350.1,0.01]
[1760068637177,2.39,4350.2,4350.1,0.011]
[1760068637510,2.29841625,4350.9,4350.1,0.011]
[1760068637511,4.68922058,4351.2,4350.1,0.011]
[1760068637691,0.1144,4350.5,4350.1,0.011]
[1760068637871,0.1144,4350.5,4350.1,2.30979384]
[1760068638301,0.1144,4350.5,4350.2,2.29874215]
[1760068639475,0.1144,4350.5,4350.3,2.29868971]
[1760068639675,0.1144,4350.5,4350.1,0.011]
[1760068640204,0.1144,4350.5,4350.2,2.2986972]
[1760068640410,0.1144,4350.5,4350.1,0.011]
[1760068640599,0.1144,4350.5,4350.4,2.2986392]
[1760068640978,0.1144,4350.5,4350.3,2.29868715]
[1760068641175,0.1144,4350.5,4350.4,2.2986392]
[1760068642117,0.1144,4350.5,4350.1,0.011]
[1760068642323,0.1144,4350.5,4350.2,2.29869351]
[1760068642519,0.1144,4350.5,4350.3,2.29864787]
[1760068642720,0.1144,4350.5,4350.2,2.29874488]
[1760068642936,0.1144,4350.5,4350.3,2.29866057]
[1760068643144,0.1144,4350.5,4350.1,0.011]